[Event "Charlotte Summer IM D 2022"]
[Site "Charlotte"]
[Date "2022.07.26"]
[Round "4.4"]
[White "Chasin, Nico"]
[Black "Bisiriyu-Salam, Oluwaseun"]
[Result "1-0"]
[ECO "A52"]
[WhiteElo "2285"]
[BlackElo "1992"]
[Annotator "TA"]
[PlyCount "69"]
[EventDate "2022.07.24"]
[EventType "tourn"]
[EventCountry "USA"]
[SourceTitle "playchess.com"]
[Source "ChessBase"]
[SourceQuality "1"]
[TimeControl "5400+30"]

{[%evp 25,69,34,84,91,86,89,89,31,39,18,77,0,0,0,-5,0,0,0,0,0,41,0,8,12,18,22,8,15,207,216,217,204,327,77,93,22,139,147,456,471,588,173,5964,5960,29977,12287]} 1. d4 {[%emt 0:02:32]} Nf6 {[%emt 0:00:54]} 2. c4 {[%emt 0:00:28]} e5 {[%emt 0:00:17]} 3. dxe5 {[%emt 0:00:24]} Ng4 {[%emt 0:00:09]} 4. Nf3 {[%emt 0:01:42]} Bc5 {[%emt 0:00:13]} 5. e3 {[%emt 0:00:25]} Nc6 {[%emt 0:01:19]} 6. Be2 {[%emt 0:00:34]} O-O {[%emt 0:00:27]} 7. O-O {[%emt 0:00:18]} Re8 {[%emt 0:00:17]} 8. Nc3 {[%emt 0:00:32]} Ngxe5 {[%emt 0:01:20]} 9. b3 {[%emt 0:02:41]} a5 {[%emt 0:02:27]} 10. Bb2 {[%emt 0:00:59]} Nxf3+ {[%emt 0:01:13]} 11. Bxf3 {[%emt 0:01:47]} Ne5 {[%emt 0:00:34]} 12. Be2 {[%emt 0:01:28]} Ra6 {[%emt 0:00:41]} 13. Ne4 {[%emt 0:02:50]} Bf8 {[%emt 0:00:32]} (13... Ba7 $14) 14. f4 $16 {[%emt 0:04:45] A52: Budapest Gambit.} Ng4 {[%emt 0:06:24]} 15. Bxg4 {[%emt 0:02:05]} Rxe4 {[%emt 0:00:43] [#]} 16. Qd3 {[%emt 0:01:30]} (16. Be5 $1 $16) 16... Re8 $14 {[%emt 0:02:48]} 17. Rf3 {[%emt 0:03:53] [#]} (17. Bf5 $5 {[%cal Rf5h7]}) 17... Rd6 $146 {[%emt 0:09:04] [#]} (17... Rh6 $11 {remains equal.}) ({Predecessor:} 17... Rh6 18. Rg3 Qh4 19. Bh3 Rg6 20. Rxg6 hxg6 21. Qc3 g5 22. Qd4 c5 23. Qd1 gxf4 24. exf4 Qxf4 {0-1 (39) Tourneur,J (2210)-Plesec,D (2375) Paris 1993}) 18. Qe2 {[%emt 0:03:02]} ({White should try} 18. Qc3 $1 $16) 18... b6 $11 {[%emt 0:02:39]} 19. Rh3 {[%emt 0:01:27]} Bb7 {[%emt 0:01:57]} 20. Be5 $40 {[%emt 0:18:07][%mdl 128] Black needs to defend precisely.} Rg6 {[%emt 0:05:29]} 21. Rd1 {[%emt 0:02:58]} d6 {[%emt 0:08:55][%cal Og6g4]} 22. Bc3 {[%emt 0:04:39]} f5 {[%emt 0:00:54]} 23. Bxf5 {[%emt 0:02:45]} (23. Bf3 {feels hotter.} Bxf3 24. Qxf3 Qc8 25. Qd5+) 23... Rxg2+ {[%emt 0:03:37]} 24. Qxg2 {[%emt 0:00:18]} Bxg2 {[%emt 0:00:06]} 25. Bxh7+ {[%emt 0:00:14]} Kf7 {[%emt 0:00:30]} 26. Kxg2 {[%emt 0:00:14]} g6 $2 {[%emt 0:02:44]} (26... a4 $11 {and Black has nothing to worry.}) 27. Rg3 $18 {[%emt 0:01:03]} Re6 {[%emt 0:01:23]} 28. f5 {[%emt 0:09:33]} Qa8+ {[%emt 0:03:14]} (28... gxf5 {was necessary.} 29. Bxf5 Qh4) 29. Rd5 $2 {[%emt 0:00:36] Really sharp!} (29. Kg1 $18 {is more deadly.} gxf5 30. Bxf5) 29... gxf5 $16 {[%emt 0:08:02]} 30. Bxf5 {[%emt 0:01:06]} (30. a4 $16) 30... Rh6 {[%emt 0:02:22]} (30... a4 $1 $11 {keeps the balance.}) 31. Be4 {[%emt 0:00:07] And now Rf5+ would win. 0x0.0016871cb32edp-1022s more active pieces. A strong pair of Bishops.} Qd8 $2 {[%emt 0:06:07][%mdl 8192]} (31... Qe8 $16 {is more resistant.} 32. Rf5+ Ke7) 32. Rf5+ $18 {[%emt 0:06:35]} Ke6 {[%emt 0:01:54][%cal Od8h4]} 33. Rxf8 $2 {[%emt 0:04:06]} Rxh2+ $2 {[%emt 0:06:59]} (33... Qxf8 34. Bg7 Rxh2+ 35. Kxh2 Qf2+ 36. Kh3 Qxa2) 34. Kxh2 {[%emt 0:02:23]} Qh4+ {[%emt 0:00:06]} 35. Rh3 {[%emt 0:00:53] Weighted Error Value: White=0.65/Black=0.93} 1-0

[Event "Charlotte Summer IM D 2022"]
[Site "Charlotte"]
[Date "2022.07.27"]
[Round "5.1"]
[White "Canty, James"]
[Black "Bacus, Dharim"]
[Result "1-0"]
[ECO "D00"]
[WhiteElo "2175"]
[BlackElo "2227"]
[Annotator "TA"]
[PlyCount "55"]
[EventDate "2022.07.24"]
[EventType "tourn"]
[EventCountry "USA"]
[SourceTitle "playchess.com"]
[Source "ChessBase"]
[SourceQuality "1"]
[TimeControl "5400+30"]

{[%evp 9,55,0,35,38,26,0,40,0,4,0,0,0,3,2,87,93,101,101,93,86,94,85,86,97,77,90,112,0,381,189,622,647,512,376,327,210,585,462,462,264,253,244,1095,1087,1267,1184,29993,29994]} 1. d4 {[%emt 0:01:03]} d5 {[%emt 1:31:00]} 2. Nc3 {[%emt 0:00:06]} Nf6 {[%emt 0:00:00]} 3. Bf4 {[%emt 0:00:23]} e6 {[%emt 0:00:00]} 4. e3 {[%emt 0:00:58]} a6 {[%emt 0:00:00]} 5. g4 {[%emt 0:00:30]} Bd6 {[%emt 0:00:00]} 6. Qf3 {[%emt 0:00:11] D00: 1 d4 d5: Unusual lines.} Bxf4 {[%emt 0:00:00]} 7. exf4 {[%emt 1:30:49] [#]} g6 $146 {[%emt 0:00:00]} (7... Nc6 $5 {[%cal Rc6d4]}) ({Predecessor:} 7... Qd6 8. h4 c5 9. dxc5 Qxc5 10. O-O-O Nc6 11. g5 Nd7 12. f5 Nde5 13. Qf4 Bd7 {0-1 (50) Saveliev,A (2352)-Buksa,N (2410) Chess.com INT 2020}) 8. O-O-O {[%emt 0:00:00] White is slightly better.} h5 $1 {[%emt 0:03:30]} 9. g5 {[%emt 0:00:00]} Ng8 {[%emt 0:00:30]} 10. h4 {[%emt 0:00:00][%cal Of4f5]} Ne7 {[%emt 0:00:00]} 11. Nge2 {[%emt 0:00:00][%cal Bg1e2,Be2f4,Bf4h5,Bh5f6][%mdl 32]} c5 {[%emt 0:00:00]} (11... Qd6 $11 {remains equal.}) 12. dxc5 $16 {[%emt 0:00:00][%cal Of4f5]} Qa5 {[%emt 0:00:00]} 13. Bh3 {[%emt 0:00:00]} Qxc5 {[%emt 0:00:00] [#]} 14. f5 $1 {[%emt 0:00:00]} gxf5 {[%emt 0:00:00]} 15. Nf4 {[%emt 0:00:00]} d4 {[%emt 0:00:00] [#]} 16. Nxh5 $1 {[%emt 0:00:00]} Nbc6 {[%emt 0:00:00]} (16... dxc3 {is a self mate.} 17. Nf6+ Kf8 18. Rd8+ Kg7 19. Rxh8 cxb2+ 20. Kb1 Bd7 21. Qh5) 17. Nf6+ {[%emt 0:00:00]} Kf8 {[%emt 0:00:00]} 18. Ne2 {[%emt 0:00:00] 0x0.001e3abc6f1edp-1022s more active pieces. The black rooks are badly placed.} (18. Na4 $16 Qa5 19. Qa3) 18... Rxh4 $2 {[%emt 0:00:00][%mdl 8192]} (18... e5 $1 $11) 19. Bf1 {[%emt 0:00:00]} (19. Bg2 $142 Rxh1 20. Bxh1 (20. Rxh1 Ng6 $14)) 19... Rxh1 {[%emt 0:00:00]} (19... Nb4 $2 20. c3 Ng6 21. Nxd4 Rxh1 22. Qxh1 $18) (19... Ne5 20. Qg2 N7g6) 20. Qxh1 $18 {[%emt 0:00:00][%cal Rh1h6]} Ng6 {[%emt 0:00:00]} 21. Qh7 {[%emt 0:00:00]} Ke7 22. Qg8 {[%emt 0:00:00]} e5 $2 {[%emt 0:00:00]} (22... Nf8) 23. Qe8+ {[%emt 0:00:00]} Kd6 {[%emt 0:00:00]} 24. Qxf7 {[%emt 0:00:00]} (24. Nc3 $142 Qa5 25. Qxf7) 24... Nce7 {[%emt 0:00:00]} 25. Qe8 {[%emt 0:00:00] Really sharp!} Qc6 $2 {[%emt 0:00:00]} (25... Kc7 26. f4 Kb6 27. Qd8+ Ka7) 26. Qd8+ {[%emt 0:00:00]} Ke6 {[%emt 0:00:00]} 27. f4 {[%emt 0:00:00] Hoping for fxe5.} Qd6 {[%emt 0:00:00] [#]} 28. Nxd4+ $1 {[%emt 0:00:00][%mdl 512] Weighted Error Value: White=0.49/Black=1.08} 1-0

[Event "Charlotte Summer IM D 2022"]
[Site "Charlotte"]
[Date "2022.07.27"]
[Round "5.2"]
[White "Bisiriyu-Salam, Oluwaseun"]
[Black "Martin Del Campo Cardenas, Roberto Abel"]
[Result "1/2-1/2"]
[ECO "B50"]
[WhiteElo "1992"]
[BlackElo "2245"]
[Annotator "TA"]
[PlyCount "28"]
[EventDate "2022.07.24"]
[EventType "tourn"]
[EventCountry "USA"]
[SourceTitle "playchess.com"]
[Source "ChessBase"]
[SourceQuality "1"]
[TimeControl "5400+30"]

{[%evp 12,28,0,-5,-2,-3,-7,-10,0,0,0,0,0,0,0,0,14,10,38]} 1. e4 {[%emt 0:15:55]} c5 {[%emt 0:00:11]} 2. Nf3 {[%emt 0:00:06]} d6 {[%emt 0:00:27]} 3. c4 {[%emt 0:00:14]} e5 {[%emt 0:00:47]} 4. Be2 {[%emt 0:00:25]} g6 {[%emt 0:00:50]} 5. O-O {[%emt 0:00:16]} Bg7 {[%emt 0:00:22]} 6. Nc3 {[%emt 0:00:21]} Ne7 {[%emt 0:00:34]} 7. d3 {[%emt 0:00:27] The position is equal.} Nbc6 {[%emt 0:00:15] B50: Sicilian: 2...d6, Miscellaneous.} 8. a3 {[%emt 0:00:44]} O-O {[%emt 0:02:55]} 9. Rb1 {[%emt 0:00:14]} Nd4 {[%emt 0:05:36]} 10. b4 {[%emt 0:00:37]} b6 {[%emt 0:02:31] [#]} 11. bxc5 $146 {[%emt 0:00:27]} ({Predecessor:} 11. h3 Bb7 12. bxc5 Nxf3+ 13. Bxf3 dxc5 14. Bb2 Nc6 15. Nd5 Rb8 16. Bc3 Re8 17. g3 {0-1 (37) De Visser,A (1968)-Radu,V (2243) ICCF email 2017}) 11... bxc5 {[%emt 0:00:48]} 12. Bg5 {[%emt 0:00:30]} f6 {[%emt 0:00:30]} 13. Be3 {[%emt 0:00:30]} Qa5 {[%emt 0:00:30]} 14. Bd2 {[%emt 0:00:30]} Ndc6 {[%emt 0:00:30] A balanced but interesting game.  Weighted Error Value: White=0.01 (flawless) /Black=0.04 (flawless)} 1/2-1/2

[Event "Charlotte Summer IM D 2022"]
[Site "Charlotte"]
[Date "2022.07.27"]
[Round "5.3"]
[White "Levine, Joseph"]
[Black "Chasin, Nico"]
[Result "0-1"]
[ECO "A04"]
[WhiteElo "2294"]
[BlackElo "2285"]
[Annotator "TA"]
[PlyCount "82"]
[EventDate "2022.07.24"]
[EventType "tourn"]
[EventCountry "USA"]
[SourceTitle "playchess.com"]
[Source "ChessBase"]
[SourceQuality "1"]
[TimeControl "5400+30"]

{[%evp 16,82,11,0,4,0,0,-30,-32,-30,0,0,0,0,0,-68,-40,-73,-34,-35,-33,-49,-28,-24,-14,-24,67,55,106,99,221,221,709,326,333,364,336,317,322,307,340,347,338,0,0,0,0,0,0,0,0,0,0,0,0,0,0,-12829,-12828,-11420,-5535,-29956,-29949,-12693,-12686,-6512,-6199,-1772,-1011]} 1. e4 {[%emt 0:00:03]} c5 {[%emt 0:08:58]} 2. Nf3 {[%emt 0:00:03]} e6 {[%emt 0:00:06]} 3. d3 {[%emt 0:00:06]} Nc6 {[%emt 0:00:13]} 4. g3 {[%emt 0:00:03]} g6 {[%emt 0:00:38]} 5. Bg2 {[%emt 0:00:21]} Bg7 {[%emt 0:00:06]} 6. O-O {[%emt 0:00:50]} Nge7 {[%emt 0:00:16]} 7. Re1 {[%emt 0:01:49]} e5 {[%emt 0:00:48]} 8. Be3 {[%emt 0:02:06]} d6 {[%emt 0:00:45]} 9. c3 {[%emt 0:02:10]} O-O {[%emt 0:00:49] A04: Unusual lines after 1 Nf3 and King's Indian Attack.} 10. h3 {[%emt 0:05:43]} f5 {[%emt 0:04:17][%cal Bf7f5,Bf5f4][%mdl 32] [#]} 11. b4 $146 {[%emt 0:07:19]} ({Predecessor:} 11. exf5 Nxf5 12. Bg5 Bf6 13. Bxf6 Qxf6 14. Nbd2 Kh8 15. Qe2 Bd7 16. a4 Rae8 17. Ne4 {0-1 (49) Loy,K (2268)-Kobalia,M (2614) Chess.com INT 2020}) 11... f4 {[%emt 0:05:48] Black has an edge.} 12. Bd2 {[%emt 0:01:53]} h6 {[%emt 0:01:42]} 13. b5 {[%emt 0:05:28]} Nb8 {[%emt 0:00:26]} 14. Qb3+ {[%emt 0:06:48]} Kh7 {[%emt 0:00:34]} 15. d4 {[%emt 0:01:00]} (15. gxf4 $11 a6 16. Na3) 15... fxg3 $15 {[%emt 0:00:53]} (15... cxd4 16. gxf4 Nd7 17. fxe5 Nxe5 18. Nxd4) 16. fxg3 {[%emt 0:02:37]} exd4 {[%emt 0:10:27]} 17. cxd4 {[%emt 0:04:55]} cxd4 {[%emt 0:00:29] aiming for ...Nd7.} (17... Rxf3 18. Qxf3 Bxd4+ 19. Kh1 $14) 18. e5 {[%emt 0:08:04]} dxe5 {[%emt 0:07:12]} 19. Nxe5 {[%emt 0:06:23]} Nf5 {[%emt 0:06:35][%cal Od4d3] Hoping for ...d3!} 20. Bb4 {[%emt 0:13:15]} Rf6 {[%emt 0:07:15]} (20... Re8 $11 21. Qf7 Re6) 21. Ng4 $14 {[%emt 0:04:38]} Rb6 {[%emt 0:01:10]} ({Black should play} 21... Nd7 $14) 22. Qf7 $16 {[%emt 0:02:55]} Qd7 {[%emt 0:04:28]} (22... d3 $16) 23. Be7 $18 {[%emt 0:04:08]} Ne3 $2 {[%emt 0:00:47] [#]} (23... h5 24. Bc6 Qc7 25. Nf6+ Kh6 26. Ng4+ (26. Ng8+ Kh7 $16) 26... Kh7 27. Nf6+ Kh6 28. Ng4+ (28. Ng8+ Kh7 $16) 28... Kh7) 24. Rxe3 {[%emt 0:10:55]} (24. Bc6 $142 $1 {[%mdl 512] White wants to mate with Nf6+.} Qxe7 25. Qxe7 Nxg4 26. hxg4 Nxc6 27. bxc6 bxc6 28. Nd2 Bxg4 29. Qf7) 24... dxe3 {[%emt 0:00:33] [#]} 25. Bd5 $1 {[%emt 0:00:36]} ({Avoid the trap} 25. Nc3 $2 Qf5 26. Rf1 Qxf7 27. Rxf7 Be6 28. Rxg7+ Kxg7 $19) 25... Qxd5 {[%emt 0:00:04]} 26. Qxd5 {[%emt 0:00:07] Strongly threatening Qf7.} Be6 {[%emt 0:01:14] [#] Prevents Qf7.} 27. Qd8 {[%emt 0:05:53]} Bxg4 {[%emt 0:20:57] [#]} (27... Nc6 28. Qxa8) 28. hxg4 $1 {[%emt 0:00:03]} Bxa1 {[%emt 0:02:00] [#]} 29. Qc7 $2 {[%emt 0:00:32]} (29. Bc5 $1 $18) 29... Na6 $11 {[%emt 0:01:41]} 30. bxa6 {[%emt 0:01:14] Threatening mate with Bf6+.} Rxb1+ {[%emt 0:00:06]} 31. Kg2 {[%emt 0:01:23] Intending Bf6+ and mate.} Bg7 {[%emt 0:00:27] ...e2 is the strong threat.} (31... Rb2+ $2 32. Kh3 Rc2 33. Qxc2 $18) 32. Bf6 {[%emt 0:02:16][%csl Gf6][%cal Rc7g7]} Rg8 {[%emt 0:00:30]} 33. axb7 {[%emt 0:00:41] And now Bxg7 would win.} e2 {[%emt 0:02:35]} 34. Bc3 {[%emt 0:00:02]} Rc1 {[%emt 0:00:02]} 35. b8=Q {[%emt 0:01:41][%cal Ob8g8]} Rxc3 {[%emt 0:00:21] Dancing on a razor blade.} 36. Kf2 $2 {[%emt 0:00:00][%mdl 8192]} Rxb8 $19 {[%emt 0:00:06]} 37. Qxb8 {[%emt 0:00:00] [#]} Re3 $3 {[%emt 0:00:01][%mdl 512]} 38. Kxe3 {[%emt 0:00:53]} (38. Qb1 e1=Q+) 38... e1=Q+ {[%emt 0:00:04]} 39. Kd3 {[%emt 0:00:27]} Qc3+ {[%emt 0:00:01] Black is clearly winning.} 40. Ke4 {[%emt 0:00:23]} Qc4+ {[%emt 0:00:01]} 41. Kf3 {[%emt 0:00:13]} Qxa2 {[%emt 0:00:02] Never resign too early!  Weighted Error Value: White=0.68/Black=0.32} 0-1

[Event "Charlotte Summer IM D 2022"]
[Site "Charlotte"]
[Date "2022.07.27"]
[Round "5.4"]
[White "Vigorito, David"]
[Black "Wen, Teddie"]
[Result "1-0"]
[ECO "E69"]
[WhiteElo "2295"]
[BlackElo "2234"]
[Annotator "TA"]
[PlyCount "97"]
[EventDate "2022.07.24"]
[EventType "tourn"]
[EventCountry "USA"]
[SourceTitle "playchess.com"]
[Source "ChessBase"]
[SourceQuality "1"]
[TimeControl "5400+30"]

{[%evp 20,97,24,27,32,28,20,20,32,28,26,23,14,25,60,49,87,52,78,70,68,73,77,80,86,99,125,139,130,125,205,216,207,208,204,200,203,187,283,278,275,270,267,271,263,260,320,320,305,163,370,347,368,322,486,476,660,619,745,726,727,687,627,622,726,651,885,770,931,937,1597,1217,3313,2860,29967,29964,6933,6642,6123,1552]} 1. d4 {[%emt 0:00:03]} Nf6 {[%emt 0:02:12]} 2. c4 {[%emt 0:02:17]} g6 {[%emt 0:00:02]} 3. g3 {[%emt 0:00:29]} Bg7 {[%emt 0:00:04]} 4. Bg2 {[%emt 0:00:09]} O-O {[%emt 0:00:05]} 5. Nc3 {[%emt 0:00:06]} d6 {[%emt 0:00:04]} 6. Nf3 {[%emt 0:00:12]} Nbd7 {[%emt 0:00:02]} 7. O-O {[%emt 0:00:11]} c6 {[%emt 0:00:03]} 8. e4 {[%emt 0:00:22]} e5 {[%emt 0:00:14]} 9. h3 {[%emt 0:00:13]} Qb6 {[%emt 0:00:22]} 10. d5 {[%emt 0:01:03]} Nc5 {[%emt 0:01:02]} 11. Re1 {[%emt 0:00:40] has lost popularity (11.Qe2).} Bd7 {[%emt 0:02:27] E69: King's Indian: Fianchetto: 6...Nbd7 7 0-0 e5 8 e4 c6 9 h3.} 12. Bf1 {[%emt 0:04:38]} Rfc8 {[%emt 0:08:13]} 13. Rb1 {[%emt 0:01:30]} a5 {[%emt 0:04:45] The position is equal.} 14. Be3 {[%emt 0:11:52][%cal Of3e5] aiming for Nxe5!} cxd5 {[%emt 1:17:55]} 15. cxd5 {[%emt 0:00:40]} Qd8 {[%emt 0:00:00]} 16. Nd2 {[%emt 0:03:29] [#]} Rab8 $146 {[%emt 0:00:00]} ({Predecessor:} 16... b5 17. Nxb5 Ncxe4 18. Nxe4 Nxe4 19. Na7 Rc7 20. Nc6 Rxc6 21. dxc6 Bxc6 22. Bg2 Qe8 {1-0 (31) Gustafsson,J (2621)-Bisby,D (2288) Pattaya 2013}) 17. a4 {[%emt 0:01:07] Inhibits b5.} Qe8 {[%emt 0:00:00][%cal Rc5a4]} 18. Ra1 {[%emt 0:06:04]} Qf8 {[%emt 0:00:00]} 19. Bxc5 {[%emt 0:02:30]} Rxc5 {[%emt 0:00:00]} 20. Nb3 {[%emt 0:00:30] Black is on the road to losing.} Rc7 {[%emt 0:00:00]} 21. Nxa5 {[%emt 0:01:50]} h5 {[%emt 0:00:00]} 22. h4 {[%emt 0:04:47] White is more active.} Bh6 {[%emt 0:00:00]} 23. Nc4 {[%emt 0:01:08]} Ng4 {[%emt 0:00:00]} 24. f3 {[%emt 0:06:18]} Rxc4 {[%emt 0:00:00]} 25. Bxc4 $18 {[%emt 0:00:48]} Ne3 {[%emt 0:00:00]} 26. Qd3 {[%emt 0:01:30]} Qc8 {[%emt 0:00:00]} 27. b3 {[%emt 0:03:46]} ({Don't do} 27. Rxe3 $6 Bxe3+ 28. Qxe3 Qxc4 $16) 27... Qc5 {[%emt 0:00:00]} 28. Kh1 {[%emt 0:07:48]} f5 {[%emt 0:00:00]} (28... Rc8 $142 29. Ra2 Kf8) 29. exf5 {[%emt 0:10:18]} Bxf5 {[%emt 0:00:00]} 30. Ne4 {[%emt 0:00:21]} Bxe4 {[%emt 0:00:00]} 31. Qxe4 {[%emt 0:00:47]} ({Worse is} 31. fxe4 Rf8 32. Rxe3 Bxe3 $11) 31... Nf5 {[%emt 0:00:00] [#]} 32. Kg2 {[%emt 0:00:47]} Kh7 {[%emt 0:00:00]} 33. Ra2 {[%emt 0:01:14]} Rf8 {[%emt 0:00:00]} 34. Rc2 {[%emt 0:00:58]} (34. Bd3 $142) 34... Rf7 $2 {[%emt 0:00:00]} (34... Ne3+ 35. Rxe3 Qxe3 36. Qxe3 Bxe3) 35. Bd3 {[%emt 0:04:57]} Qb6 {[%emt 0:00:00]} 36. b4 {[%emt 0:00:24]} Rg7 {[%emt 0:00:00]} (36... Qd8 {might work better.} 37. Rf2 Rf6) 37. a5 {[%emt 0:00:28]} Qa7 {[%emt 0:00:00]} 38. Kh3 {[%emt 0:03:42]} Nd4 {[%emt 0:00:00] [#]} 39. Rc7 {[%emt 0:20:04][%mdl 512]} Nf5 {[%emt 0:00:00]} 40. Rxg7+ {[%emt 0:00:00]} Kxg7 {[%emt 0:00:00]} 41. Kg2 {[%emt 0:00:00] Inhibits Qf2+.} Be3 {[%emt 0:13:30]} 42. Re2 {[%emt 0:00:00] Prevents Bf2.} Bh6 {[%emt 0:00:00]} 43. Kh2 {[%emt 0:00:00] Qc4 is the strong threat.} Qa8 {[%emt 0:00:00]} 44. Qc4 {[%emt 0:00:00]} Qd8 {[%emt 0:00:00]} 45. Rc2 {[%emt 0:00:00]} Qf6 {[%emt 0:00:00]} 46. Bxf5 {[%emt 0:00:00][%cal Oc4c8] White wants to mate with Qc8!} gxf5 {[%emt 0:00:00]} 47. Qc7+ {[%emt 0:00:00]} Kg6 {[%emt 0:00:00]} 48. Qd7 {[%emt 0:00:00] White threatens Rc7 and mate.} e4 {[%emt 0:00:00]} 49. Qe8+ {[%emt 0:00:00] Weighted Error Value: White=0.11 (very precise) /Black=0.43} (49. Rc7 $142 Bg7 50. fxe4 fxe4 51. Qe8+ Kh6 52. Qxe4) 1-0

[Event "Charlotte Summer IM D 2022"]
[Site "Charlotte"]
[Date "2022.07.27"]
[Round "5.5"]
[White "Oberoi, Shelev"]
[Black "Leyva Rivera, Yunier"]
[Result "1-0"]
[ECO "B22"]
[WhiteElo "2259"]
[BlackElo "2379"]
[Annotator "TA"]
[PlyCount "75"]
[EventDate "2022.07.24"]
[EventType "tourn"]
[EventCountry "USA"]
[SourceTitle "playchess.com"]
[Source "ChessBase"]
[SourceQuality "1"]
[TimeControl "5400+30"]

{[%evp 17,75,25,27,40,49,46,47,50,52,43,99,93,94,98,84,85,83,60,94,37,33,17,43,10,18,9,11,-22,0,0,0,-38,0,0,22,31,441,441,1111,1102,1110,1034,1098,1081,1440,875,781,787,29981,29982,29986,29987,29987,29986,29986,29987,29987,29986,29983,29981]} 1. e4 {[%emt 0:00:03]} c5 {[%emt 0:01:29]} 2. c3 {[%emt 0:00:12]} d5 {[%emt 0:00:31]} 3. exd5 {[%emt 0:00:11]} Qxd5 {[%emt 0:00:05]} 4. Nf3 {[%emt 0:00:10]} Nf6 {[%emt 0:00:17]} 5. d4 {[%emt 0:00:21]} e6 {[%emt 0:00:25]} 6. Na3 {[%emt 0:00:24]} Be7 {[%emt 0:00:34]} 7. Nb5 {[%emt 0:02:38]} Na6 {[%emt 0:00:19]} 8. Be2 {[%emt 0:03:30] 8.Be3 is vanishing.} O-O {[%emt 0:00:54]} 9. O-O {[%emt 0:00:58]} cxd4 {[%emt 0:11:25]} 10. c4 {[%emt 0:03:49] B22: Sicilian: 2 c3.} Qc5 {[%emt 0:12:36]} 11. a3 {[%emt 0:04:48] [#]} Bd7 $146 {[%emt 0:19:02]} (11... e5 $2 12. b4 Qb6 13. Nxe5 $18) ({Predecessor:} 11... Rd8 12. b4 Qb6 13. Bb2 Qc6 14. Nfxd4 Qe8 15. Qc2 e5 16. Nb3 e4 17. Rad1 Bf5 18. Rxd8 Qxd8 {1-0 (35) Madeira,W (2189)-Trevisan,R Florianopolis 2017}) 12. b4 {[%emt 0:03:34][%cal Bb2b4,Bb4b5][%mdl 32] White is slightly better.} ({Reject} 12. Qxd4 Bxb5 13. cxb5 Qxd4 14. Nxd4 Nc5 $15) 12... Qc8 {[%emt 0:00:08]} 13. Nbxd4 {[%emt 0:06:03]} Nc7 {[%emt 0:00:23]} ({Better is} 13... Rd8 $14) 14. Bb2 {[%emt 0:05:09]} a5 {[%emt 0:00:28]} 15. b5 {[%emt 0:05:40]} Ne4 {[%emt 0:07:53]} 16. Qc2 {[%emt 0:06:04]} Nc5 {[%emt 0:00:14]} 17. Ne5 {[%emt 0:01:32]} Ne8 {[%emt 0:01:33]} 18. f4 {[%emt 0:05:20] White is much more active. The black rooks are badly placed.} (18. Nb3 $16) 18... Qc7 $14 {[%emt 0:02:08]} 19. Rad1 {[%emt 0:03:17]} Rd8 {[%emt 0:00:22]} 20. Kh1 {[%emt 0:11:38]} Nd6 {[%emt 0:03:53]} 21. Bf3 {[%emt 0:12:23]} Bc8 {[%emt 0:00:12]} 22. Rde1 {[%emt 0:05:45]} Rfe8 {[%emt 0:01:15]} 23. Bh5 {[%emt 0:02:23]} Rf8 $1 {[%emt 0:05:49]} 24. Rf3 {[%emt 0:01:29]} Nf5 {[%emt 0:13:59] Prevents Rg3.} 25. Rh3 $36 {[%emt 0:02:53][%cal Og2g4][%mdl 2048] g4! is the strong threat. White has some pressure.} h6 {[%emt 0:03:29]} (25... f6 $5 {[%cal Rf6e5]} 26. Nef3 Nh6 $11) 26. Ndf3 {[%emt 0:05:17] And now g4 would win.} Nd7 $2 {[%emt 0:14:07][%mdl 8192] This move loses the game for Black.} (26... f6 $1 $14 27. g4 (27. Ng6 Nd3 $17) 27... fxe5 28. Bxe5 Bd6 29. gxf5 Bxe5 30. Nxe5 Rxf5) 27. g4 $18 {[%emt 0:01:08][%cal Bg2g4,Bg4g5][%mdl 32]} Nd6 {[%emt 0:00:00]} (27... Nxe5 $142 28. fxe5 Nh4 29. Nxh4 b6) 28. g5 {[%emt 0:01:37]} Nxe5 {[%emt 0:00:00]} 29. Nxe5 {[%emt 0:00:30]} Nf5 {[%emt 0:00:00]} 30. gxh6 {[%emt 0:00:54]} Nxh6 {[%emt 0:00:00] [#]} 31. Bxf7+ $1 {[%emt 0:01:55][%mdl 512]} Rxf7 {[%emt 0:00:00]} 32. Nxf7 {[%emt 0:00:55]} Kxf7 {[%emt 0:00:00] [#]} 33. Rxh6 $1 {[%emt 0:00:16][%mdl 512] White mates.} Bf8 {[%emt 0:00:00]} (33... gxh6 34. Qh7+) 34. Qg6+ {[%emt 0:01:26]} Kg8 {[%emt 0:00:00]} 35. Qh7+ {[%emt 0:00:36]} Kf7 {[%emt 0:00:00]} 36. Rf6+ {[%emt 0:01:21]} Ke7 {[%emt 0:00:32] [#]} 37. Qf5 $1 {[%emt 0:00:56]} gxf6 {[%emt 0:01:21]} 38. Qh7+ {[%emt 0:02:25][%mdl 64] Skewer.  Weighted Error Value: White=0.08 (flawless) /Black=0.49} 1-0